bitfinex-derivatives/quotes_ETHF0:USTF0_20251226
["timestamp","ask_amount","ask_price","bid_price","bid_amount"]
[1766707201046,3.448,2904.8,2903.2,2.5262586]
[1766707201242,3.448,2904.8,2903.2,2.50331519]
[1766707202139,0.3441,2905.4,2903.2,2.50331519]
[1766707202343,3.448,2905.2,2903.2,2.50331519]
[1766707202541,3.448,2905.0,2903.2,2.50331519]
[1766707203545,0.3441,2905.4,2903.2,2.50331519]
[1766707203741,6.0,2905.3,2902.8,0.00516413]
[1766707203944,3.88092532,2905.2,2902.5,0.00374436]
[1766707204240,3.448,2905.0,2902.6,0.43555932]
[1766707204443,0.17232,2903.3,2902.5,0.00374436]
[1766707204938,0.00516413,2903.2,2902.6,0.00516413]
[1766707205336,0.00428518,2903.3,2902.6,0.00516413]
[1766707206142,0.17660518,2903.3,2902.6,0.00516413]
[1766707206338,0.17232,2903.2,2902.6,4.13e-06]
[1766707207140,0.00428518,2903.3,2902.6,4.13e-06]
[1766707210645,0.17229,2903.8,2902.6,4.13e-06]
[1766707211347,0.3443,2903.7,2902.6,4.13e-06]
[1766707211540,0.34859245,2903.7,2902.6,4.13e-06]
[1766707212445,0.00429245,2903.7,2902.6,4.13e-06]
[1766707212750,0.17228,2903.9,2902.6,4.13e-06]
[1766707213346,2.282,2904.9,2902.6,4.13e-06]
[1766707213547,0.00372848,2904.9,2902.6,4.13e-06]
[1766707213747,0.17229,2903.8,2902.6,4.13e-06]
[1766707214849,0.17225,2904.4,2902.6,4.13e-06]
[1766707215049,7.63925,2904.4,2902.6,4.13e-06]
[1766707215651,0.17226,2904.3,2902.6,4.13e-06]
[1766707215844,7.467,2904.4,2902.6,4.13e-06]
[1766707216043,0.17228,2903.9,2902.6,4.13e-06]
[1766707216554,0.17229,2903.8,2902.6,4.13e-06]
[1766707216851,0.1723,2903.6,2902.6,4.13e-06]
[1766707217246,2.0533,2903.6,2902.6,4.13e-06]
[1766707218048,0.1723,2903.6,2902.6,4.13e-06]
[1766707218254,2.7403,2903.6,2902.6,4.13e-06]
[1766707218443,0.1723,2903.5,2902.6,4.13e-06]
[1766707218651,0.1723,2903.5,2901.3,0.17243]
[1766707218852,0.1723,2903.5,2901.4,0.17243]
[1766707219054,0.1723,2903.5,2901.5,0.17242]
[1766707219552,1.321,2904.0,2902.2,0.00516413]
[1766707219753,0.17229,2903.8,2902.2,0.00516413]
[1766707220248,0.00372848,2904.9,2902.3,3.98823255]
[1766707220249,0.17223,2904.8,2902.3,3.98823255]
[1766707220449,0.17225,2904.5,2902.3,3.98823255]
[1766707220650,3.45172848,2904.9,2902.2,0.00516413]
[1766707220955,3.62394848,2904.9,2902.2,0.00516413]
[1766707221155,0.17224,2904.6,2902.2,0.00516413]
[1766707221452,3.45172848,2904.9,2902.2,0.00516413]
[1766707222654,0.17225,2904.4,2902.2,0.00516413]
[1766707223951,0.17226,2904.3,2902.2,0.00516413]
[1766707224147,3.45172848,2904.9,2902.2,0.00516413]
[1766707224349,4.92118961,2904.3,2902.2,0.00516413]
[1766707224552,0.17227,2904.1,2902.2,0.00516413]
[1766707225051,0.17228,2904.0,2902.2,0.00516413]
[1766707225245,0.17228,2903.9,2902.2,0.00516413]
[1766707228556,1.53044472,2904.0,2902.2,0.00516413]
[1766707230051,1.47318961,2904.3,2902.2,0.00516413]
[1766707230559,0.17225,2904.5,2902.5,0.17236]
[1766707231153,0.00372848,2904.9,2902.7,0.17235]
[1766707231553,0.00372848,2904.9,2902.8,0.17234]
[1766707232358,0.00372848,2904.9,2902.9,4.02934]
[1766707233261,0.00372848,2904.9,2903.0,0.17233]
[1766707233460,0.00372848,2904.9,2903.7,0.00516413]
[1766707233663,0.00372848,2904.9,2903.7,0.00789384]
[1766707234764,0.17595848,2904.9,2903.7,0.00789384]
[1766707234955,0.17223,2904.8,2903.7,0.00789384]
[1766707235155,0.17223,2904.7,2903.7,0.00789384]
[1766707235355,0.17223,2904.7,2902.5,1.2477241]
[1766707235557,0.17225,2904.5,2902.5,1.2477241]
[1766707235758,0.17225,2904.4,2902.5,1.2477241]
[1766707236264,0.00516413,2903.7,2903.2,0.00516413]
[1766707241872,1.49900149,2904.8,2903.2,0.00516413]
[1766707251486,0.17237,2902.4,2899.9,0.17252]
[1766707251686,5.772,2902.3,2899.9,0.17252]
[1766707251972,6.1165,2902.3,2899.9,0.44324195]
[1766707252194,4.722,2902.2,2899.9,0.17252]
[1766707252475,0.00516413,2901.3,2900.8,0.00516413]
[1766707254185,5.77430386,2902.2,2900.8,0.00516413]
[1766707254186,0.00330386,2902.2,2900.8,0.00516413]
[1766707260885,0.00330386,2902.2,2900.8,0.17762413]
[1766707261080,3.86e-06,2902.2,2900.8,0.17762413]
[1766707262781,3.86e-06,2902.2,2900.8,0.00516413]
[1766707262979,3.86e-06,2902.3,2901.0,0.17245]
[1766707263183,3.86e-06,2902.3,2900.9,3.74739347]
[1766707263900,0.00348316,2902.3,2900.9,3.74739347]
[1766707264488,0.17232,2903.2,2900.9,3.74739347]
[1766707265384,0.17491054,2903.2,2901.2,0.17244]
[1766707267292,0.00259054,2903.2,2901.5,0.17242]
[1766707271896,0.00259054,2903.2,2901.8,0.1724]
[1766707273192,0.17229,2903.7,2901.9,0.1724]
[1766707273385,0.17229,2903.7,2902.5,0.00516413]
[1766707273990,1.50894576,2904.0,2902.5,0.00516413]
[1766707274185,1.51188828,2904.0,2902.5,0.00899239]
[1766707274701,0.00294252,2904.0,2902.5,0.00899239]
[1766707278791,0.1723,2903.7,2902.5,0.00899239]
[1766707279988,0.1723,2903.7,2901.4,5.464]
[1766707279989,0.299,2903.6,2901.4,5.464]
[1766707280202,0.299,2903.9,2901.4,5.464]
[1766707280404,0.17232,2903.3,2901.4,5.464]
[1766707280896,0.17232,2903.3,2902.1,0.00516413]
[1766707281102,0.00516413,2902.6,2902.1,0.00516413]
[1766707282099,0.00516413,2902.6,2901.4,5.46758285]
[1766707283104,0.00516413,2902.6,2901.7,0.00516413]
[1766707289811,0.17232,2903.2,2901.7,0.00516413]
[1766707290014,1.51552656,2903.8,2901.7,0.00516413]
[1766707290521,1.68781656,2903.8,2901.7,0.00516413]
[1766707290718,0.00516413,2903.0,2901.7,0.00516413]
[1766707292618,0.00516413,2903.0,2901.7,0.17757413]
[1766707293415,0.00516413,2903.0,2901.8,0.17241]
[1766707294823,0.00516413,2903.0,2901.9,0.1724]
[1766707296217,0.00516413,2903.0,2902.0,0.17239]
[1766707296410,1.51552656,2903.8,2902.3,0.17237]
[1766707296614,1.51552656,2903.8,2902.5,0.17236]
[1766707299026,1.51552656,2903.8,2902.4,5.454]
[1766707299324,4.252e-05,2904.0,2902.8,0.17235]
[1766707300327,4.252e-05,2904.0,2902.8,1.43458643]
[1766707303229,4.252e-05,2904.0,2903.0,0.17233]
[1766707303424,4.252e-05,2904.0,2903.2,0.00516413]
[1766707304628,1.50094962,2905.5,2903.3,0.17231]
[1766707304815,1.50094962,2905.5,2903.4,5.449]
[1766707305526,1.50094962,2905.5,2903.4,5.62131]
[1766707305728,11.94648758,2905.2,2903.4,5.62131]
[1766707307527,0.00372494,2905.2,2903.8,0.17228]
[1766707307724,0.00372494,2905.2,2903.9,0.17228]
[1766707308826,0.00372494,2905.2,2903.8,0.00252451]
[1766707309230,0.17215,2906.1,2904.1,0.17226]
[1766707309425,0.17215,2906.1,2904.8,0.00516413]
[1766707309823,0.17215,2906.1,2904.4,5.445]
[1766707310226,0.17215,2906.1,2904.1,0.17226]
[1766707310227,0.17525923,2906.1,2904.1,0.17226]
[1766707310830,0.00516413,2905.4,2904.8,0.00516413]
[1766707311231,0.00516413,2905.4,2904.0,5.445]
[1766707311425,0.00516413,2905.4,2903.9,5.444]
[1766707311631,0.00516413,2905.4,2903.8,0.00252451]
[1766707312228,0.00516413,2905.4,2904.3,0.00516413]
[1766707318741,0.00516413,2905.4,2903.8,0.00252451]
[1766707319642,0.00516413,2905.4,2904.3,0.00516413]
[1766707320241,0.00516413,2905.4,2903.8,0.00252451]
[1766707320934,0.00516413,2905.4,2903.8,0.17480451]
[1766707321335,0.00516413,2905.4,2904.3,0.00516413]
[1766707326152,0.00310923,2906.1,2904.3,0.00516413]
[1766707326536,0.00310923,2906.1,2904.4,3.75943476]
[1766707327037,0.00310923,2906.1,2904.7,0.17223]
[1766707327345,0.00310923,2906.1,2904.8,5.60623]
[1766707327544,0.12403744,2906.6,2904.8,9.09066985]
[1766707327749,0.12403744,2906.6,2904.8,5.434]
[1766707327941,0.12403744,2906.6,2904.9,3.65666985]
[1766707328444,0.12403744,2906.6,2905.0,0.17221]
[1766707328640,0.12797729,2906.6,2905.0,0.17221]
[1766707329050,0.00516413,2906.1,2905.0,0.17221]
[1766707330542,0.12797729,2906.6,2905.0,0.17221]
[1766707330849,0.12797729,2906.6,2905.1,0.17221]
[1766707331342,0.12797729,2906.6,2905.1,3.75110442]
[1766707331537,0.12797729,2906.6,2905.1,0.17221]
[1766707336152,0.12797729,2906.6,2904.6,1.2386594]
[1766707336353,0.12797729,2906.6,2905.0,5.429]
[1766707336556,0.17214,2906.4,2904.6,1.2386594]
[1766707336756,0.17214,2906.3,2904.6,1.2386594]
[1766707337644,0.299,2906.5,2904.6,1.2386594]
[1766707337850,0.12797729,2906.6,2904.6,1.4108994]
[1766707339956,0.12797729,2906.6,2904.7,3.58319096]
[1766707340661,0.12797729,2906.6,2904.8,0.17222]
[1766707341350,0.12797729,2906.6,2904.9,0.17222]
[1766707341556,0.12797729,2906.6,2904.9,4.0189668]
[1766707341753,0.12797729,2906.6,2904.9,0.17222]
[1766707341949,0.00393985,2906.6,2904.9,0.17222]
[1766707342157,0.00393985,2906.6,2905.0,3.85883299]
[1766707342349,0.00393985,2906.6,2905.0,3.68661299]
[1766707342548,0.00393985,2906.6,2905.2,0.1722]
[1766707342748,0.00393985,2906.6,2905.3,5.425]
[1766707345759,10.123,2907.5,2905.3,5.425]
[1766707345966,11.86393244,2907.8,2906.1,0.00516413]
[1766707346857,11.86733801,2907.8,2906.1,0.00767058]
[1766707348858,11.69528801,2907.8,2906.1,0.00767058]
[1766707349063,0.17206,2907.6,2906.1,0.00767058]
[1766707349758,0.17206,2907.6,2901.4,49.96598124]
[1766707349759,3.448,2907.4,2901.4,49.96598124]
[1766707349954,0.17214,2906.3,2903.3,0.27713042]
[1766707350158,3.044,2906.2,2903.6,0.1723]
[1766707350358,0.17216,2906.1,2903.6,0.1723]
[1766707350856,0.00516413,2905.1,2904.6,0.00516413]
[1766707351052,0.00809318,2905.1,2903.6,0.1758532]
[1766707352162,0.00809318,2905.1,2904.1,0.00516413]
[1766707353163,0.344,2906.2,2904.6,0.17223]
[1766707354154,0.00516413,2905.7,2904.6,0.17223]
[1766707355173,0.34810895,2906.2,2904.6,0.17223]
[1766707355366,0.34810895,2906.2,2904.7,0.17223]
[1766707355770,0.34810895,2906.2,2904.7,4.03200474]
[1766707356669,0.08780895,2906.2,2905.0,0.17221]
[1766707356865,10.123,2907.3,2905.1,0.17221]
[1766707357062,5.704,2907.6,2905.9,0.00516413]
[1766707357368,1.19160037,2907.3,2905.9,0.00516413]
[1766707357761,0.17209,2907.2,2904.9,4.319]
[1766707357966,0.17209,2907.2,2905.4,0.00265899]
[1766707358775,0.00516413,2906.6,2906.0,0.00516413]
[1766707358976,0.00516413,2906.6,2905.4,0.00265899]
[1766707360277,0.00516413,2906.6,2904.5,5.58724]
[1766707360981,0.00516413,2906.6,2905.3,0.00516413]
[1766707361176,0.00516413,2906.6,2905.3,0.0079959]
[1766707361978,0.00516413,2906.6,2904.5,5.58724]
[1766707362276,0.299,2906.5,2904.5,5.58724]
[1766707362974,0.299,2906.5,2905.2,0.00516413]
[1766707364876,0.299,2906.5,2904.5,5.41944829]
[1766707365378,0.299,2906.5,2904.5,5.59168829]
[1766707365878,0.299,2906.5,2905.2,0.00516413]
[1766707367078,0.17214,2906.4,2904.5,5.59168829]
[1766707367278,0.299,2906.3,2904.5,0.17668829]
[1766707367975,0.299,2906.3,2905.1,0.00343864]
[1766707368175,0.47114,2906.3,2904.5,0.17668829]
[1766707369574,0.17216,2906.0,2904.5,0.00444829]
[1766707369973,1.19160037,2905.8,2904.5,0.00444829]
[1766707371379,1.36377037,2905.8,2904.5,0.00444829]
[1766707373083,0.47118,2905.7,2903.9,0.17228]
[1766707373284,0.00516413,2905.1,2903.9,0.17228]
[1766707373484,0.00516413,2905.1,2903.4,5.409]
[1766707374173,0.00799401,2905.1,2903.4,5.41227441]
[1766707375479,0.00799401,2905.1,2903.4,5.58458441]
[1766707380292,0.00799401,2905.1,2903.6,0.1723]
[1766707380682,0.00799401,2905.1,2903.7,3.96425593]
[1766707381189,0.00799401,2905.1,2903.8,0.17228]
[1766707381780,0.00799401,2905.1,2903.4,5.41227441]
[1766707385094,0.299,2905.0,2903.4,5.41227441]
[1766707386086,0.17222,2904.9,2903.4,0.00327441]
[1766707386585,0.3442,2904.8,2903.4,0.00327441]
[1766707386787,1.70803037,2904.8,2903.4,0.00327441]
[1766707387291,0.17224,2904.7,2903.4,0.00327441]
[1766707387490,0.17224,2904.6,2903.4,0.00327441]
[1766707387692,1.53580037,2904.8,2902.6,0.17235]
[1766707387693,0.17225,2904.5,2902.6,0.17235]
[1766707388588,0.17225,2904.5,2902.6,0.17527574]
[1766707390598,0.17225,2904.4,2902.6,0.00292574]
[1766707399003,0.299,2904.7,2902.7,0.17235]
[1766707399793,0.6432,2904.8,2902.7,0.17235]
[1766707399999,0.6432,2904.8,2902.9,0.17234]
[1766707400195,0.6432,2904.8,2903.1,0.17233]
[1766707400606,0.3442,2904.8,2903.2,0.17232]
[1766707402908,0.3442,2904.8,2903.3,5.396]
[1766707405305,0.3442,2904.8,2903.4,0.17231]
[1766707405808,0.3442,2904.8,2903.5,3.63220626]
[1766707406205,0.3442,2904.8,2903.4,0.17231]
[1766707406604,1.49742098,2904.9,2903.4,0.17231]
[1766707410715,0.3442,2904.8,2903.4,0.17231]
[1766707411015,0.3442,2904.8,2903.3,5.396]
[1766707411616,0.6432,2904.8,2903.3,5.396]
[1766707413704,0.00799401,2905.1,2903.3,5.396]
[1766707413705,0.1721,2907.0,2904.7,0.0008]
[1766707413902,0.17211,2906.9,2904.8,5.39]
[1766707414109,4.95519065,2907.4,2904.8,9.17410662]
[1766707414506,4.95519065,2907.4,2904.8,5.39]
[1766707414819,0.00516413,2906.4,2905.8,0.00516413]
[1766707416708,0.00516413,2906.4,2904.8,5.56466977]
[1766707416906,0.00516413,2906.4,2904.8,5.56122757]
[1766707418305,0.00516413,2906.4,2904.8,5.38899757]
[1766707418508,0.00516413,2906.4,2904.8,0.00243977]
[1766707419408,0.00516413,2906.4,2904.3,0.17125529]
[1766707420019,0.00516413,2906.4,2904.3,0.44603836]
[1766707420317,0.00516413,2906.4,2904.3,0.17380825]
[1766707422620,0.00516413,2906.4,2904.4,0.17225]
[1766707426025,0.17214,2906.3,2904.3,0.00255296]
[1766707428418,0.17214,2906.3,2904.3,0.17481296]
[1766707430625,0.17214,2906.2,2904.3,0.17481296]
[1766707431023,0.00516413,2906.4,2904.5,0.17224]
[1766707432529,0.17214,2906.3,2904.5,0.17224]
[1766707436435,0.17215,2906.1,2904.3,0.00255296]
[1766707437125,0.17217,2905.8,2904.3,0.00255296]
[1766707439029,1.48132028,2906.2,2904.3,0.00255296]
[1766707440330,0.17214,2906.3,2904.3,0.17481296]
[1766707442133,0.00516413,2906.4,2904.3,0.00255296]
[1766707442134,0.17215,2906.2,2904.3,0.00255296]
[1766707443833,0.00516413,2906.4,2904.3,0.00255296]
[1766707444537,0.17216,2905.9,2904.3,0.00255296]
[1766707445034,0.17218,2905.7,2904.3,0.00255296]
[1766707445236,0.17218,2905.7,2903.8,1.26290819]
[1766707446235,0.17218,2905.7,2903.8,0.00304202]
[1766707446437,1.63027724,2905.7,2903.8,0.00304202]
[1766707446935,0.17218,2905.6,2903.8,0.00304202]
[1766707453241,1.45809724,2905.7,2903.8,0.00304202]
[1766707457343,1.45809724,2905.7,2904.1,0.17227]
[1766707458239,1.45809724,2905.7,2903.9,3.8744555]
[1766707458439,0.00516413,2906.4,2904.2,3.8744555]
[1766707458639,0.00516413,2906.4,2904.6,0.17224]
[1766707458833,0.00516413,2906.4,2904.7,0.17223]
[1766707468456,0.00516413,2906.4,2904.8,3.85048961]
[1766707471653,0.00516413,2906.4,2905.0,0.17221]
[1766707473056,0.00516413,2906.4,2904.6,5.365]
[1766707473658,0.00516413,2906.4,2904.7,0.17223]
[1766707476665,0.00516413,2906.4,2904.8,0.17223]
[1766707478059,0.00516413,2906.4,2904.7,1.22862464]
[1766707478553,0.00516413,2906.4,2904.6,5.365]
[1766707478954,0.00516413,2906.4,2904.3,1.36360702]
[1766707479161,0.17215,2906.1,2903.4,1.19134702]
[1766707479361,0.17215,2906.1,2903.9,4.595]
[1766707479554,0.17215,2906.1,2903.9,4.76728]
[1766707480960,0.17215,2906.1,2904.0,3.86672716]
[1766707481680,0.17215,2906.1,2904.0,4.03899716]
[1766707484178,0.17215,2906.1,2904.1,0.17226]
[1766707487687,0.00516413,2906.4,2904.2,0.17226]
[1766707487982,0.83275241,2906.4,2904.8,0.82758828]
[1766707490775,0.00516413,2906.4,2905.1,0.82758828]
[1766707491282,0.00516413,2906.4,2904.8,3.906]
[1766707491283,0.00516413,2906.4,2905.4,0.82758828]
[1766707492086,0.00516413,2906.4,2904.8,4.07823]
[1766707495787,0.00516413,2906.4,2904.9,0.17222]
[1766707501283,0.00516413,2906.4,2904.9,5.52022]
[1766707501685,0.00516413,2906.4,2904.4,1.21995215]
[1766707501883,0.00516413,2906.4,2904.5,5.348]
[1766707502083,0.00516413,2906.4,2904.5,9.02167899]
[1766707502486,0.00516413,2906.4,2904.5,9.19391899]
[1766707502686,0.00516413,2906.4,2904.6,0.17224]
[1766707502886,0.00516413,2906.4,2904.8,0.17223]
[1766707503082,0.00516413,2906.4,2904.9,0.17222]
[1766707505295,0.00516413,2906.4,2905.0,5.35]
[1766707505996,0.00516413,2906.4,2904.9,5.52122]
[1766707506197,0.00516413,2906.4,2904.9,5.349]
[1766707506891,0.00516413,2906.4,2904.7,5.349]
[1766707508393,0.17214,2906.3,2904.7,5.349]
[1766707508703,0.17214,2906.2,2904.7,5.349]
[1766707508993,10.24222843,2906.3,2903.9,5.348]
[1766707509498,3.445,2906.1,2903.9,5.348]
[1766707510495,0.17217,2905.7,2903.9,5.348]
[1766707517899,1.00014079,2905.7,2904.2,0.82797079]
[1766707518994,0.82797079,2905.7,2904.2,0.82797079]
[1766707519800,0.82797079,2905.7,2903.9,5.52028]
[1766707519996,0.17216,2906.0,2903.9,5.52028]
[1766707522700,0.17216,2906.0,2903.9,6.735193]
[1766707529512,0.17216,2906.0,2904.0,0.17227]
[1766707530413,0.00516413,2906.4,2904.1,0.17227]
[1766707530799,0.00516413,2906.4,2904.3,0.17226]
[1766707532411,0.00516413,2906.4,2904.4,3.86933422]
[1766707533015,0.00516413,2906.4,2904.5,0.17224]
[1766707533713,0.00516413,2906.4,2904.6,0.17224]
[1766707534015,0.00516413,2906.4,2904.7,0.17223]
[1766707535420,0.00516413,2906.4,2903.9,6.562913]
[1766707535421,0.00516413,2906.4,2904.9,0.17222]
[1766707535611,0.00516413,2906.4,2905.0,5.336]
[1766707537918,0.00516413,2906.4,2905.0,5.50821]
[1766707538508,1.4677709,2907.0,2905.1,0.17221]
[1766707538713,1.4677709,2907.0,2905.2,0.1722]
[1766707539324,1.4677709,2907.0,2905.1,3.60637302]
[1766707539325,1.4677709,2907.0,2905.4,0.17219]
[1766707539526,0.00516413,2906.5,2905.9,0.00516413]
[1766707539819,1.4677709,2907.0,2905.9,0.00827546]
[1766707540019,11.12197663,2907.9,2905.9,0.00827546]
[1766707540218,0.99897663,2907.9,2905.9,0.00827546]
[1766707540822,0.00516413,2906.9,2905.9,0.00827546]
[1766707544420,0.00516413,2906.9,2905.9,0.83521209]
[1766707545626,0.00516413,2906.9,2905.9,0.00827546]
[1766707552526,0.17205,2907.8,2905.9,0.00827546]
[1766707553631,0.00516413,2906.9,2905.9,0.00827546]
[1766707554531,0.00343137,2907.4,2906.2,0.99907663]
[1766707554730,0.00343137,2907.4,2906.7,0.82693663]
[1766707554919,0.12270474,2908.1,2906.7,0.82693663]
[1766707555323,0.82693663,2909.1,2906.8,0.17211]
[1766707555926,0.00416722,2909.1,2906.8,0.17211]
[1766707556128,0.00416722,2909.1,2907.1,0.82693663]
[1766707556331,0.00416722,2909.1,2907.5,0.82693663]
[1766707556530,0.00516413,2908.6,2908.0,0.00516413]
[1766707556732,0.00416722,2909.1,2908.0,0.00962584]
[1766707558428,1.66168345,2910.2,2908.1,5.322]
[1766707558629,0.82693663,2910.0,2908.0,5.33162584]
[1766707558933,0.82693663,2909.6,2908.0,0.00962584]
[1766707559433,0.82945904,2909.6,2908.0,0.00962584]
[1766707559735,0.00252241,2909.6,2908.0,0.00962584]
[1766707560732,0.00252241,2909.6,2908.0,0.83656247]
[1766707561734,0.00252241,2909.6,2908.1,1.588]
[1766707562436,0.00252241,2909.6,2908.0,0.00962584]
[1766707562635,0.82693663,2909.3,2908.0,0.00962584]
[1766707563237,0.00252241,2909.6,2908.0,0.00962584]
[1766707563831,0.99889663,2909.3,2908.0,0.00962584]
[1766707564033,0.00516413,2908.9,2907.2,2.26]
[1766707564536,0.00516413,2908.9,2906.9,5.317]
[1766707564927,0.00516413,2908.9,2907.6,0.00516413]
[1766707565945,0.17715413,2908.9,2906.9,0.00298334]
[1766707566237,0.17199,2908.8,2906.9,0.00298334]
[1766707568943,0.17199,2908.8,2907.6,0.00516413]
[1766707569945,0.172,2908.7,2906.9,0.00298334]
[1766707570737,0.172,2908.7,2907.5,0.00516413]
[1766707577243,0.00516413,2908.9,2907.5,0.00516413]
[1766707580752,0.00516413,2908.9,2907.6,0.17206]
[1766707580946,0.00252241,2909.6,2907.6,0.17206]
[1766707581855,0.00252241,2909.6,2907.7,0.17205]
[1766707582054,0.00252241,2909.6,2907.7,3.91323831]
[1766707582253,0.00252241,2909.6,2907.7,0.17205]
[1766707582950,0.00516413,2908.9,2907.7,0.17205]
[1766707586153,0.00252241,2909.6,2907.8,0.17204]
[1766707586660,0.00252241,2909.6,2907.9,5.306]
[1766707587250,0.00252241,2909.6,2908.0,0.82579861]
[1766707587657,0.00252241,2909.6,2907.9,5.47804]
[1766707588459,0.00516413,2909.0,2907.9,5.47804]
[1766707589049,0.00252241,2909.6,2907.9,5.47804]
[1766707589253,0.00252241,2909.6,2908.0,0.99782861]
[1766707589451,0.00252241,2909.6,2908.0,0.17203]
[1766707592652,0.82579861,2909.5,2907.5,0.00516413]
[1766707592857,0.82579861,2909.1,2907.5,0.00516413]
[1766707596761,6.952,2909.5,2906.9,0.17508334]
[1766707596762,0.82579861,2908.3,2906.9,0.00298334]
[1766707597159,0.172,2908.6,2906.9,0.00298334]
[1766707597761,0.00516413,2908.0,2907.5,0.00516413]
[1766707599471,0.00516413,2908.0,2906.9,0.00298334]
[1766707600370,0.00516413,2908.0,2907.2,0.00516413]
[1766707616977,0.3437,2907.9,2907.2,0.00516413]
[1766707617277,0.3437,2907.9,2906.9,0.00298334]
[1766707618076,0.3437,2907.9,2907.1,0.00516413]
[1766707620467,0.3437,2907.9,2906.9,0.00298334]
[1766707621582,0.3437,2907.9,2907.1,0.00516413]
[1766707631185,0.00516413,2908.0,2907.1,0.00516413]
[1766707631992,0.00516413,2908.0,2907.5,0.82610212]
[1766707632183,1.52036912,2908.7,2907.5,0.82610212]
[1766707633187,0.00516413,2908.4,2907.5,0.82610212]
[1766707634392,0.3438,2908.3,2907.5,0.82610212]
[1766707635791,0.3438,2908.3,2907.8,0.82610212]
[1766707636095,0.00516413,2908.4,2907.8,0.82610212]
[1766707636896,0.00516413,2908.4,2907.5,0.82610212]
[1766707637195,0.83126625,2908.4,2907.1,0.00516413]
[1766707639100,0.00516413,2908.4,2907.2,0.82610212]
[1766707639502,0.3436,2908.3,2907.2,0.82610212]
[1766707643597,0.3436,2908.3,2907.5,0.82610212]
[1766707643810,0.00516413,2908.4,2907.5,0.82610212]
[1766707645211,0.00516413,2908.4,2907.1,0.17725413]
[1766707645513,0.00516413,2908.4,2907.5,0.82610212]
[1766707650919,0.00516413,2908.4,2907.1,0.17725413]
[1766707651216,0.83126625,2908.4,2907.1,0.17725413]
[1766707651407,0.00516413,2908.4,2907.2,0.82610212]
[1766707651612,0.00516413,2908.4,2907.8,0.82610212]
[1766707652110,0.00516413,2908.4,2907.5,0.82610212]
[1766707658916,0.00516413,2908.4,2907.8,0.82610212]
[1766707660017,1.49989286,2909.3,2907.3,0.82594015]
[1766707660819,0.00516413,2908.6,2907.3,0.82594015]
[1766707662515,0.00516413,2908.6,2907.3,0.99802015]
[1766707662716,0.00516413,2908.6,2907.4,0.17207]
[1766707664120,1.49989286,2909.3,2907.4,0.17207]
[1766707664415,1.49989286,2909.3,2907.5,0.17207]
[1766707665213,0.00516413,2908.7,2907.6,0.17206]
[1766707666020,0.00516413,2908.7,2907.7,0.82594015]
[1766707666221,1.49989286,2909.3,2907.7,0.82594015]
[1766707666524,1.49989286,2909.3,2907.7,0.99800015]
[1766707667021,1.49989286,2909.3,2907.7,0.17206]
[1766707667416,1.49989286,2909.3,2907.3,6.50324509]
[1766707667620,0.99791015,2909.1,2907.3,6.50324509]
[1766707668123,0.17197,2909.1,2907.3,6.50324509]
[1766707674821,0.82594015,2908.8,2907.1,0.00516413]
[1766707675026,0.82594015,2908.6,2907.1,0.00516413]
[1766707675224,0.17202,2908.7,2907.1,0.00516413]
[1766707676021,0.82594015,2909.1,2907.1,0.00516413]
[1766707677426,1.67187286,2909.3,2907.1,0.00516413]
[1766707681032,0.17198,2909.2,2907.1,0.00516413]
[1766707684132,0.82594015,2909.0,2907.1,0.00516413]
[1766707685439,0.17201,2908.8,2907.1,0.00516413]
[1766707686141,3.445,2909.2,2907.1,0.00516413]
[1766707688240,4.27094015,2909.1,2907.1,0.00516413]
[1766707688441,0.82594015,2908.7,2907.1,0.00516413]
[1766707689839,0.172,2908.9,2907.1,0.00516413]
[1766707698042,5.668,2908.9,2907.1,0.00516413]
[1766707698842,0.172,2908.9,2907.1,0.00516413]
[1766707700345,5.497,2909.0,2907.1,0.00516413]
[1766707700346,0.82594015,2908.4,2907.1,0.00516413]
[1766707700544,0.99797015,2908.5,2907.1,0.00516413]
[1766707700845,0.1991,2908.3,2907.1,0.00516413]
[1766707712744,8.934,2908.9,2907.1,0.00516413]
[1766707713552,3.445,2908.9,2907.1,0.00516413]
[1766707713851,8.936,2908.9,2907.1,0.00516413]
[1766707714449,5.493,2908.8,2907.1,0.00516413]
[1766707714645,3.445,2908.9,2907.1,0.00516413]
[1766707714846,5.494,2908.8,2907.1,0.00516413]
[1766707716452,0.3437,2908.7,2907.1,0.00516413]
[1766707720255,3.96071,2908.7,2907.1,0.00516413]
[1766707721956,0.82650163,2908.3,2907.1,0.00516413]
[1766707722459,0.82650163,2908.0,2907.1,0.00516413]
[1766707725859,1.48348533,2908.4,2907.1,0.00516413]
[1766707726160,1.48348533,2908.4,2907.6,0.82650163]
[1766707727260,0.82650163,2907.7,2905.8,6.17572273]
[1766707727463,0.82650163,2906.8,2905.2,0.82650163]
[1766707727665,0.82650163,2906.6,2904.7,5.242]
[1766707727960,0.82650163,2906.9,2904.8,3.75305372]
[1766707728148,0.82650163,2906.6,2904.8,3.75305372]
[1766707728354,0.00516413,2906.0,2905.4,0.00516413]
[1766707729165,0.00431975,2906.6,2905.6,0.82650163]
[1766707730258,0.00431975,2906.6,2905.9,0.82650163]
[1766707731664,0.00431975,2906.6,2905.6,0.82650163]
[1766707732059,0.00431975,2906.6,2905.4,0.00516413]
[1766707733056,0.82650163,2906.5,2905.4,0.00516413]
[1766707733259,0.00431975,2906.6,2904.8,0.00369122]
[1766707733564,0.82650163,2906.3,2904.9,0.82650163]
[1766707733760,0.00431975,2906.6,2905.5,0.82650163]
[1766707733966,0.00431975,2906.6,2904.8,0.00369122]
[1766707734164,0.00516413,2906.0,2905.4,0.00516413]
[1766707734968,0.00431975,2906.6,2905.4,0.00516413]
[1766707738163,0.00431975,2906.6,2904.8,0.00369122]
[1766707739166,0.00516413,2906.0,2904.8,0.00369122]
[1766707740177,0.00516413,2906.0,2905.1,0.00516413]
[1766707742072,0.00516413,2906.0,2904.8,0.00369122]
[1766707743166,0.00516413,2906.0,2905.1,0.00516413]
[1766707744268,0.00516413,2906.0,2904.8,0.00369122]
[1766707745267,0.00516413,2906.0,2905.1,0.00516413]
[1766707746673,0.00516413,2906.0,2904.8,0.00369122]
[1766707747178,0.3441,2905.9,2904.8,0.00369122]
[1766707747680,0.3441,2905.9,2905.1,0.00516413]
[1766707754382,0.3441,2905.9,2905.1,0.83278807]
[1766707758586,0.3441,2905.9,2905.1,0.00516413]
[1766707761085,0.3441,2905.9,2905.3,0.82762394]
[1766707761484,0.3441,2905.9,2905.1,0.00516413]
[1766707763687,0.3441,2905.9,2905.2,0.82762394]